fUST/lending_fUST_20240722
["ID","MTS","AMOUNT","RATE_DAILY","PERIOD"]
[332854737,1721583057529,-500.0,0.00015616,2]
[332854738,1721583057539,-500.0,0.00015616,2]
[332854739,1721583057551,-500.0,0.00015616,2]
[332854740,1721583057561,-500.0,0.00015616,2]
[332854741,1721583057571,-500.0,0.00015616,2]
[332854742,1721583057582,-1445.42,0.00015616,2]
[332854743,1721583057593,-500.0,0.00015616,2]
[332854744,1721583057604,-160.85070375,0.00015616,2]
[332854745,1721583057615,-500.0,0.00015616,2]
[332854746,1721583057626,-771.46,0.00015616,2]
[332854747,1721583057635,-2045.09,0.00015616,2]
[332854748,1721583057645,-500.0,0.00015616,2]
[332854749,1721583057655,-500.0,0.00015616,2]
[332854750,1721583057666,-930.2,0.00015616,2]
[332854751,1721583057676,-500.0,0.00015616,2]
[332854752,1721583057688,-684.13,0.00015616,2]
[332854753,1721583057702,-500.0,0.00015616,2]
[332854754,1721583057712,-687.94,0.00015616,2]
[332854755,1721583057722,-1866.61,0.00015616,2]
[332854756,1721583057734,-1337.16,0.00015616,2]
[332854757,1721583057746,-565.6,0.00015616,2]
[332854758,1721583057757,-561.68,0.00015616,2]
[332854759,1721583057768,-723.1,0.00015616,2]
[332854760,1721583057780,-500.0,0.00015616,2]
[332854761,1721583057790,-1520.82,0.00015616,2]
[332854762,1721583057800,-500.0,0.00015616,2]
[332854763,1721583057810,-1951.93,0.00015616,2]
[332854764,1721583057820,-2114.25,0.00015616,2]
[332854765,1721583057831,-1164.77,0.00015616,2]
[332854766,1721583057842,-500.0,0.00015616,2]
[332854767,1721583057853,-1320.34,0.00015616,2]
[332854768,1721583057864,-744.8,0.00015616,2]
[332854769,1721583057875,-1724.01,0.00015616,2]
[332854770,1721583057886,-500.0,0.00015616,2]
[332854771,1721583057895,-1333.01,0.00015616,2]
[332854772,1721583057905,-500.0,0.00015616,2]
[332854773,1721583057917,-504.86,0.00015616,2]
[332854774,1721583057929,-531.31,0.00015616,2]
[332854775,1721583057940,-2564.77,0.00015616,2]
[332854776,1721583057953,-503.98,0.00015616,2]
[332854777,1721583057966,-1473.72,0.00015616,2]
[332854778,1721583057977,-500.0,0.00015616,2]
[332854779,1721583057986,-500.0,0.00015616,2]
[332854780,1721583057998,-579.86,0.00015616,2]
[332854781,1721583058008,-674.71,0.00015616,2]
[332854782,1721583058018,-1005.89,0.00015616,2]
[332854783,1721583058028,-500.0,0.00015616,2]
[332854784,1721583058038,-500.0,0.00015616,2]
[332854785,1721583058048,-500.0,0.00015616,2]
[332854786,1721583058058,-5550.3,0.00015616,2]
[332854787,1721583058068,-1341.62,0.00015616,2]
[332854788,1721583058079,-1204.73,0.00015616,2]
[332854789,1721583058090,-12941.36,0.00015616,2]
[332854790,1721583058101,-1907.18,0.00015616,2]
[332854791,1721583058111,-500.0,0.00015616,2]
[332854792,1721583058121,-3689.8,0.00015616,2]
[332854793,1721583058131,-500.0,0.00015616,2]
[332854794,1721583058141,-500.0,0.00015616,2]
[332854795,1721583058151,-1624.15,0.00015616,2]
[332854796,1721583058161,-3041.94,0.00015616,2]
[332854797,1721583058173,-1054.8,0.00015616,2]
[332854798,1721583058183,-2090.47,0.00015616,2]
[332854799,1721583058192,-500.0,0.00015616,2]
[332854800,1721583058201,-1806.74,0.00015616,2]
[332854801,1721583058211,-2202.13,0.00015616,2]
[332854802,1721583058222,-500.0,0.00015616,2]
[332854803,1721583058233,-500.0,0.00015616,2]
[332854804,1721583058245,-2213.48,0.00015616,2]
[332854805,1721583058255,-4016.4,0.00015616,2]
[332854806,1721583058267,-500.0,0.00015616,2]
[332854807,1721583058277,-500.0,0.00015616,2]
[332854808,1721583058287,-500.0,0.00015616,2]
[332854809,1721583058297,-2197.7,0.00015616,2]
[332854810,1721583058306,-1723.55,0.00015616,2]
[332854811,1721583058316,-500.0,0.00015616,2]
[332854812,1721583058326,-652.01,0.00015616,2]
[332854813,1721583058336,-5397.5,0.00015616,2]
[332854814,1721583058346,-1092.54,0.00015616,2]
[332854815,1721583058355,-993.63,0.00015616,2]
[332854816,1721583058365,-917.62,0.00015616,2]
[332854817,1721583058374,-500.0,0.00015616,2]
[332854818,1721583058384,-500.0,0.00015616,2]
[332854819,1721583058394,-1170.03,0.00015616,2]
[332854820,1721583058404,-716.45,0.00015616,2]
[332854821,1721583058413,-4132.02,0.00015616,2]
[332854822,1721583058422,-500.0,0.00015616,2]
[332854823,1721583058432,-500.0,0.00015616,2]
[332854824,1721583058442,-2222.11,0.00015616,2]
[332854825,1721583058452,-818.39,0.00015616,2]
[332854826,1721583058462,-935.93,0.00015616,2]
[332854827,1721583058472,-7400.98,0.00015616,2]
[332854828,1721583058481,-500.0,0.00015616,2]
[332854829,1721583058491,-930.77,0.00015616,2]
[332854830,1721583058501,-500.0,0.00015616,2]
[332854831,1721583058511,-734.72,0.00015616,2]
[332854832,1721583058523,-500.0,0.00015616,2]
[332854833,1721583058533,-500.0,0.00015616,2]
[332854834,1721583058543,-1669.97,0.00015616,2]
[332854835,1721583058553,-850.61,0.00015616,2]
[332854836,1721583058563,-552.12,0.00015616,2]
[332854837,1721583058572,-500.0,0.00015616,2]
[332854838,1721583058582,-930.18,0.00015616,2]
[332854839,1721583058591,-500.0,0.00015616,2]
[332854840,1721583058601,-827.41,0.00015616,2]
[332854841,1721583058611,-1082.74,0.00015616,2]
[332854842,1721583058621,-1077.15,0.00015616,2]
[332854843,1721583058632,-2665.28,0.00015616,2]
[332854844,1721583058642,-1492.38,0.00015616,2]
[332854845,1721583058651,-500.0,0.00015616,2]
[332854846,1721583058661,-1378.02,0.00015616,2]
[332854847,1721583058671,-500.0,0.00015616,2]
[332854848,1721583058681,-1450.96,0.00015616,2]
[332854849,1721583058695,-500.0,0.00015616,2]
[332854850,1721583058704,-500.0,0.00015616,2]
[332854851,1721583058714,-500.0,0.00015616,2]
[332854852,1721583058725,-559.28,0.00015616,2]
[332854853,1721583058735,-776.21,0.00015616,2]
[332854854,1721583058745,-2703.39,0.00015616,2]
[332854855,1721583058755,-500.0,0.00015616,2]
[332854856,1721583058767,-508.21,0.00015616,2]
[332854857,1721583058778,-722.53,0.00015616,2]
[332854858,1721583058788,-1011.22,0.00015616,2]
[332854859,1721583058798,-500.0,0.00015616,2]
[332854860,1721583058807,-521.74,0.00015616,2]
[332854861,1721583058817,-500.0,0.00015616,2]
[332854862,1721583058826,-1538.99,0.00015616,2]
[332854863,1721583058836,-1744.99,0.00015616,2]
[332854864,1721583058848,-500.0,0.00015616,2]
[332854865,1721583058858,-10125.34,0.00015616,2]
[332854866,1721583058867,-923.66,0.00015616,2]
[332854867,1721583058877,-767.77,0.00015616,2]
[332854868,1721583058887,-4491.18,0.00015616,2]
[332854869,1721583058897,-500.0,0.00015616,2]
[332854870,1721583058907,-1883.32,0.00015616,2]
[332854871,1721583058916,-556.62,0.00015616,2]
[332854872,1721583058926,-500.0,0.00015616,2]
[332854873,1721583058935,-500.0,0.00015616,2]
[332854874,1721583058944,-500.0,0.00015616,2]
[332854875,1721583058954,-710.76,0.00015616,2]
[332854876,1721583058964,-3281.33,0.00015616,2]
[332854877,1721583058974,-763.56,0.00015616,2]
[332854878,1721583058983,-638.5,0.00015616,2]
[332854879,1721583058994,-4482.68,0.00015616,2]
[332854880,1721583059004,-644.61,0.00015616,2]
[332854881,1721583059014,-850.61,0.00015616,2]
[332854882,1721583059024,-500.0,0.00015616,2]
[332854883,1721583059034,-648.14,0.00015616,2]
[332854884,1721583059043,-2313.44,0.00015616,2]
[332854885,1721583059053,-1229.93,0.00015616,2]
[332854886,1721583059062,-6955.44,0.00015616,2]
[332854887,1721583059072,-500.0,0.00015616,2]
[332854888,1721583059082,-5865.42,0.00015616,2]
[332854889,1721583059091,-500.0,0.00015616,2]
[332854890,1721583059101,-500.0,0.00015616,2]
[332854891,1721583059111,-877.65,0.00015616,2]
[332854892,1721583059121,-500.0,0.00015616,2]
[332854893,1721583059131,-500.0,0.00015616,2]
[332854894,1721583059141,-831.66,0.00015616,2]
[332854895,1721583059150,-500.0,0.00015616,2]
[332854896,1721583059160,-500.0,0.00015616,2]
[332854897,1721583059169,-500.0,0.00015616,2]
[332854898,1721583059179,-500.0,0.00015616,2]
[332854899,1721583059189,-500.0,0.00015616,2]
[332854900,1721583059199,-500.0,0.00015616,2]
[332854901,1721583059209,-500.0,0.00015616,2]
[332854902,1721583059220,-632.02,0.00015616,2]
[332854903,1721583059230,-516.4,0.00015616,2]
[332854904,1721583059239,-500.0,0.00015616,2]
[332854905,1721583059249,-539.22,0.00015616,2]
[332854906,1721583059259,-500.0,0.00015616,2]
[332854907,1721583059270,-500.0,0.00015616,2]
[332854908,1721583059280,-567.48,0.00015616,2]
[332854909,1721583059289,-500.0,0.00015616,2]
[332854910,1721583059299,-500.0,0.00015616,2]
[332854911,1721583059308,-500.0,0.00015616,2]
[332854912,1721583059318,-500.0,0.00015616,2]
[332854913,1721583059327,-281.33,0.00015616,2]
[332854914,1721583059337,-151.0,0.00015616,2]
[332854915,1721583059346,-151.0,0.00015616,2]
[332854916,1721583059355,-151.0,0.00015616,2]
[332854917,1721583059365,-151.0,0.00015616,2]
[332854918,1721583059374,-165.275678,0.00015616,2]
[332854919,1721583059384,-165.275678,0.00015616,2]
[332854920,1721583059393,-165.275678,0.00015616,2]
[332854921,1721583059403,-165.275678,0.00015616,2]
[332854922,1721583059412,-165.275678,0.00015616,2]
[332854923,1721583059422,-165.275678,0.00015616,2]
[332854924,1721583059431,-151.0,0.00015616,2]
[332854925,1721583059441,-151.0,0.00015616,2]
[332854926,1721583059451,-151.0,0.00015616,2]
[332854927,1721583059460,-153.171905,0.00015616,2]
[332854928,1721583059470,-227.880418,0.00015616,2]
[332854929,1721583059479,-751.52088152,0.00015667,2]
[332854930,1721583059489,-5000.0,0.000157,2]
[332854931,1721583059499,-1179.78916348,0.00015707,2]
[332854932,1721583059508,-6876.78146164,0.00015707,2]
[332854933,1721583059518,-3382.57755669,0.00015707,2]
[332854934,1721583059528,-166598.73655647,0.00015707,2]
[332854935,1721583059538,-151.0,0.00015707,2]
[332854936,1721583059548,-151.0,0.00015707,2]
[332854937,1721583059557,-165.275678,0.00015707,2]
[332854938,1721583059567,-165.275688,0.00015707,2]
[332854939,1721583059576,-151.0,0.00015707,2]
[332854940,1721583059586,-2708.88208775,0.00015708,2]
[332854941,1721583059595,-1500.0,0.00015708,2]
[332854942,1721583059604,-6996.71226737,0.00015708,2]
[332854943,1721583059614,-17286.00900975,0.00015708,2]
[332854944,1721583059623,-10602.80442942,0.00015708,2]
[332854945,1721583059633,-21284.05194699,0.00015708,2]
[332854946,1721583059642,-2137.72573135,0.00015708,2]
[332854947,1721583059652,-1638.62228996,0.00015708,2]
[332854948,1721583059661,-9635.93595369,0.00015708,2]
[332854949,1721583059671,-4375.59670388,0.00015708,2]
[332854950,1721583059680,-2213.3379845,0.00015708,2]
[332854951,1721583059690,-5513.05891957,0.00015708,2]
[332854952,1721583059704,-492.10696549,0.00015708,2]
[332854953,1721583059714,-1161.38988049,0.00015708,2]
[332854954,1721583059724,-2829.32212565,0.00015708,2]
[332854955,1721583084907,360.89601898,9.999e-05,2]
[332854956,1721583102896,538.66804263,9.999e-05,2]
[332854957,1721583114908,322.09913605,0.0001212,2]
[332854958,1721583114932,2427.53004357,0.0001212,2]
[332854959,1721583114954,2480.12,0.0001212,2]
[332854960,1721583114975,1749.34119389,0.0001212,2]
[332854961,1721583114997,2441.96184146,0.0001212,2]
[332854962,1721583115020,2374.91098969,0.0001212,2]
[332854988,1721584028136,-300.0,9.998e-05,2]
[332854989,1721584028162,-188.02682589,9.999e-05,2]
[332854990,1721584028187,-154.83739293,9.999e-05,2]
[332854991,1721584028210,-178.96669628,9.999e-05,2]
[332854992,1721584028233,-375.56569674,9.999e-05,2]
[332854993,1721584028257,-850.9951784,9.999e-05,2]
[332854994,1721584033113,-90.50317573,9.999e-05,2]
[332854995,1721584033137,-526.40635673,9.999e-05,2]
[332854996,1721584033160,-156.48689215,9.999e-05,2]
[332854997,1721584033182,-524.1077099,9.999e-05,2]
[332854998,1721584033204,-248.79133132,9.999e-05,2]
[332854999,1721584033227,-1107.38930569,9.999e-05,2]
[332855000,1721584033251,-342.33,0.00010959,2]
[332855001,1721584033275,-420.0,0.00010998,2]
[332855002,1721584033300,-407.0,0.00012098,2]
[332855003,1721584033326,-156.81599663,0.0001212,2]
[332855004,1721584033354,-218.09499306,0.0001212,2]
[332855005,1721584033374,-550.0,0.00013297,2]
[332855006,1721584033399,-175.163621,0.00013699,2]
[332855007,1721584033420,-175.039724,0.00013808,2]
[332855008,1721584033440,-176.346921,0.00013808,2]
[332855009,1721584033463,-182.829031,0.00013808,2]
[332855010,1721584033484,-175.039724,0.0001398,2]
[332855011,1721584033506,-176.346921,0.0001398,2]
[332855012,1721584033531,-175.039724,0.00014153,2]
[332855013,1721584033556,-176.346921,0.00014153,2]
[332855014,1721584033581,-750.0,0.00014247,2]
[332855015,1721584033606,-175.039724,0.00014325,2]
[332855016,1721584033628,-176.346921,0.00014325,2]
[332855017,1721584033851,-509.97719904,0.0001442,2]
[332855028,1721584145117,-375.60899939,9.999e-05,2]
[332855093,1721584232479,-150.0,0.0001442,2]
[332855094,1721584232489,-503.0,0.0001442,2]
[332855095,1721584232499,-1408.0,0.0001442,2]
[332855096,1721584232509,-195.8633417,0.0001442,2]
[332855097,1721584232520,-175.039724,0.00014498,2]
[332855098,1721584232529,-176.346921,0.00014498,2]
[332855099,1721584232539,-13431.04307036,0.00014691,2]
[332855100,1721584232548,-1172.61097654,0.00014691,2]
[332855101,1721584232559,-327.38902346,0.00014691,2]
[332855102,1721584232568,-2141.90824361,0.00014691,2]
[332855103,1721584232600,-514.956,0.00014691,2]
[332855104,1721584232684,-141.66541631,0.00014691,2]
[332855124,1721584234047,154.71377951,0.0001,2]
[332855149,1721584238173,-882.528492,0.00014691,2]
[332855150,1721584238203,-1417.50138341,0.00014691,2]
[332855151,1721584238214,-165.0,0.00014795,2]
[332855152,1721584238226,-500.0,0.00014803,2]
[332855153,1721584238236,-500.0,0.00014803,2]
[332855154,1721584238246,-500.0,0.00014803,2]
[332855155,1721584238256,-500.0,0.00014803,2]
[332855156,1721584238266,-500.0,0.00014803,2]
[332855157,1721584238275,-500.0,0.00014803,2]
[332855158,1721584238285,-299.50371977,0.00014803,2]
[332855159,1721584238294,-500.0,0.00014803,2]
[332855160,1721584238304,-500.0,0.00014803,2]
[332855161,1721584238314,-365.02718208,0.00014803,2]
[332855162,1721584238323,-500.0,0.00014803,2]
[332855163,1721584238333,-205.96900228,0.00014803,2]
[332855164,1721584238342,-500.0,0.00014804,2]
[332855165,1721584238351,-500.0,0.00014804,2]
[332855166,1721584238362,-519.25,0.00014804,2]
[332855167,1721584238372,-517.7343324,0.00014804,2]
[332855168,1721584238382,-500.0,0.00014804,2]
[332855169,1721584238392,-229.18311745,0.00014804,2]
[332855170,1721584238402,-410.65868871,0.00014804,2]
[332855171,1721584238411,-649.28,0.00014804,2]
[332855172,1721584238422,-123.91012389,0.00014804,2]
[332855173,1721584238434,-441.35987611,0.00014804,2]
[332855174,1721584238444,-500.0,0.00014804,2]
[332855175,1721584238454,-500.0,0.00014804,2]
[332855176,1721584238464,-500.0,0.00014804,2]
[332855177,1721584238474,-647.55,0.00014804,2]
[332855178,1721584238483,-500.0,0.00014804,2]
[332855179,1721584238493,-500.0,0.00014804,2]
[332855180,1721584238502,-500.0,0.00014804,2]
[332855181,1721584238512,-500.0,0.00014804,2]
[332855182,1721584238522,-411.43959157,0.00014804,2]
[332855183,1721584238532,-500.0,0.00014804,2]
[332855184,1721584238542,-500.0,0.00014804,2]
[332855185,1721584238783,-500.0,0.00014804,2]
[332855186,1721584238793,-500.0,0.00014804,2]
[332855187,1721584238802,-328.46821313,0.00014804,2]
[332855188,1721584238813,-500.0,0.00014804,2]
[332855189,1721584238823,-500.0,0.00014804,2]
[332855190,1721584238832,-500.0,0.00014804,2]
[332855191,1721584238842,-500.0,0.00014804,2]
[332855192,1721584238851,-500.0,0.00014804,2]
[332855193,1721584238861,-500.0,0.00014805,2]
[332855194,1721584238870,-313.46816555,0.00014805,2]
[332855195,1721584238881,-500.0,0.00014805,2]
[332855196,1721584238891,-390.73947296,0.00014805,2]
[332855197,1721584238900,-535.58,0.00014805,2]
[332855198,1721584238909,-500.0,0.00014805,2]
[332855199,1721584238918,-500.0,0.00014805,2]
[332855200,1721584238929,-500.0,0.00014805,2]
[332855201,1721584238938,-500.0,0.00014805,2]
[332855202,1721584238948,-500.03043161,0.00014805,2]
[332855203,1721584238958,-500.0,0.00014805,2]
[332855204,1721584238968,-332.09956349,0.00014805,2]
[332855205,1721584238980,-167.90043651,0.00014805,2]
[332855206,1721584238990,-522.79535084,0.00014805,2]
[332855207,1721584238999,-24.4417202,0.00014805,2]
[332855208,1721584239011,-477.69886133,0.00014805,2]
[332855209,1721584239021,-527.12,0.00014805,2]
[332855210,1721584239030,-500.88670477,0.00014805,2]
[332855211,1721584239039,-500.0,0.00014805,2]
[332855212,1721584239049,-500.0,0.00014805,2]
[332855213,1721584239059,-500.0,0.00014805,2]
[332855214,1721584239071,-500.0,0.00014805,2]
[332855215,1721584239082,-500.0,0.00014805,2]
[332855216,1721584239091,-500.0,0.00014805,2]
[332855217,1721584239101,-500.0,0.00014805,2]
[332855218,1721584239113,-500.0,0.00014805,2]
[332855219,1721584239122,-500.0,0.00014805,2]
[332855220,1721584239132,-500.0,0.00014805,2]
[332855221,1721584239143,-500.0,0.00014805,2]
[332855222,1721584239153,-202.74847918,0.00014805,2]
[332855223,1721584239162,-500.0,0.00014805,2]
[332855224,1721584239173,-500.0,0.00014805,2]
[332855225,1721584239183,-500.0,0.00014805,2]
[332855226,1721584239193,-500.97595616,0.00014805,2]
[332855227,1721584239203,-500.0,0.00014805,2]
[332855228,1721584239212,-500.0,0.00014805,2]
[332855229,1721584239226,-500.0,0.00014805,2]
[332855230,1721584239235,-500.0,0.00014805,2]
[332855231,1721584239245,-500.0,0.00014805,2]
[332855232,1721584239255,-500.0,0.00014805,2]
[332855233,1721584239267,-503.40828399,0.00014805,2]
[332855234,1721584239276,-271.46926943,0.00014805,2]
[332855235,1721584239286,-500.0,0.00014805,2]
[332855236,1721584239297,-500.0,0.00014805,2]
[332855237,1721584239307,-500.0,0.00014805,2]
[332855238,1721584239317,-500.0,0.00014805,2]
[332855239,1721584239327,-500.0,0.00014805,2]
[332855240,1721584239337,-500.0,0.00014805,2]
[332855241,1721584239348,-476.46151824,0.00014805,2]
[332855242,1721584239360,-23.53848176,0.00014805,2]
[332855243,1721584239370,-501.87943531,0.00014805,2]
[332855244,1721584239379,-500.0,0.00014805,2]
[332855245,1721584239390,-500.0,0.00014805,2]
[332855246,1721584239399,-500.0,0.00014805,2]
[332855247,1721584239409,-500.0,0.00014805,2]
[332855248,1721584239418,-229.93,0.00014805,2]
[332855249,1721584239428,-279.09367978,0.00014805,2]
[332855250,1721584239438,-500.0,0.00014805,2]
[332855251,1721584239448,-500.0,0.00014805,2]
[332855252,1721584239458,-507.42065107,0.00014805,2]
[332855253,1721584239470,-500.0,0.00014805,2]
[332855254,1721584239479,-500.0,0.00014805,2]
[332855255,1721584239489,-500.0,0.00014805,2]
[332855256,1721584239499,-500.0,0.00014805,2]
[332855257,1721584239509,-504.20734521,0.00014805,2]
[332855258,1721584239518,-404.98282631,0.00014805,2]
[332855259,1721584239530,-95.01717369,0.00014805,2]
[332855260,1721584239540,-500.0,0.00014805,2]
[332855261,1721584239550,-500.0,0.00014805,2]
[332855262,1721584239559,-500.0,0.00014805,2]
[332855263,1721584239568,-500.0,0.00014805,2]
[332855264,1721584239577,-500.0,0.00014805,2]
[332855265,1721584239588,-500.0,0.00014805,2]
[332855266,1721584239598,-508.21,0.00014805,2]
[332855267,1721584239608,-500.0,0.00014805,2]
[332855268,1721584239617,-480.28052809,0.00014805,2]
[332855269,1721584239627,-557.68215365,0.00014805,2]
[332855270,1721584239638,-500.0,0.00014805,2]
[332855271,1721584239649,-614.25,0.00014805,2]
[332855272,1721584239658,-500.0,0.00014805,2]
[332855273,1721584239668,-500.0,0.00014805,2]
[332855274,1721584239679,-168.28,0.00014805,2]
[332855275,1721584239688,-500.0,0.00014805,2]
[332855276,1721584239699,-500.0,0.00014805,2]
[332855277,1721584239710,-381.69086736,0.00014805,2]
[332855334,1721584242315,-199.94485775,0.00014803,2]
[332855335,1721584242324,-262.78079801,0.00014803,2]
[332855336,1721584242334,-118.30913264,0.00014805,2]
[332855337,1721584242343,-500.0,0.00014805,2]
[332855338,1721584242353,-500.0,0.00014805,2]
[332855339,1721584242362,-500.0,0.00014805,2]
[332855340,1721584242371,-500.0,0.00014805,2]
[332855341,1721584242381,-500.0,0.00014805,2]
[332855342,1721584242390,-500.0,0.00014805,2]
[332855343,1721584242399,-500.0,0.00014805,2]
[332855344,1721584242409,-500.0,0.00014805,2]
[332855345,1721584242418,-503.23587098,0.00014805,2]
[332855346,1721584242427,-500.0,0.00014805,2]
[332855347,1721584242437,-500.0,0.00014805,2]
[332855348,1721584242447,-500.0,0.00014805,2]
[332855349,1721584242456,-504.70362065,0.00014805,2]
[332855350,1721584242465,-539.84,0.00014805,2]
[332855351,1721584242478,-473.72,0.00014805,2]
[332855352,1721584242487,-500.0,0.00014805,2]
[332855353,1721584242497,-500.0,0.00014805,2]
[332855354,1721584242506,-502.20050292,0.00014805,2]
[332855355,1721584242515,-647.07,0.00014805,2]
[332855356,1721584242524,-500.0,0.00014805,2]
[332855357,1721584242533,-500.0,0.00014805,2]
[332855358,1721584242543,-554.94,0.00014805,2]
[332855359,1721584242552,-566.80909548,0.00014863,2]
[332855360,1721584242562,-1273.8450616,0.00014989,2]
[332855361,1721584242571,-1273.8450616,0.0001499,2]
[332855362,1721584242581,-246.23629666,0.00014999,2]
[332855364,1721584242590,-192.69265131,0.00014999,2]
[332855365,1721584242599,-172.07577459,0.00014999,2]
[332855367,1721584242608,-500.0,0.00014999,2]
[332855369,1721584242618,-500.0,0.00014999,2]
[332855370,1721584242627,-500.0,0.00014999,2]
[332855371,1721584242636,-500.0,0.00014999,2]
[332855372,1721584242645,-500.0,0.00014999,2]
[332855373,1721584242655,-500.0,0.00014999,2]
[332855374,1721584242664,-636.95930785,0.00014999,2]
[332855375,1721584242674,-500.0,0.00014999,2]
[332855376,1721584242683,-500.0,0.00014999,2]
[332855377,1721584242693,-500.0,0.00014999,2]
[332855378,1721584242702,-4657.59570218,0.00015,2]
[332855379,1721584242711,-552.71235541,0.00015,2]
[332855381,1721584242724,-1825.51894106,0.00015,2]
[332855382,1721584242733,-154.71377951,0.00015,2]
[332855383,1721584242742,-408.67645039,0.00015,2]
[332855384,1721584242751,-2844.20261952,0.00015,2]
[332855385,1721584242761,-49028.65425379,0.00015,2]
[332855386,1721584242770,-370.49070482,0.00015,2]
[332855387,1721584242779,-1044.15123109,0.00015,2]
[332855388,1721584242790,-449.58184146,0.00015079,2]
[332855389,1721584242799,-169.97,0.00015079,2]
[332855390,1721584242809,-500.0,0.00015079,2]
[332855391,1721584242818,-500.0,0.00015079,2]
[332855392,1721584242827,-500.0,0.00015079,2]
[332855393,1721584242836,-547.62878197,0.00015079,2]
[332855394,1721584242846,-492.38,0.00015353,2]
[332855396,1721584242856,-500.0,0.00015353,2]
[332855398,1721584242865,-620.00000001,0.00015447,2]
[332855400,1721584242875,-5304.19710114,0.00015466,2]
[332855402,1721584242885,-367.35615468,0.00015516,2]
[332855403,1721584242895,-270.6051927,0.0001555,2]
[332855405,1721584242904,-2547.6901232,0.00015597,2]
[332855406,1721584242914,-36235.57642746,0.00015607,2]
[332855409,1721584243319,-1014.5992497,0.00015607,2]
[332855410,1721584243331,-491.4907503,0.00015607,2]
[332855411,1721584243617,-121.75778173,0.00015607,2]
[332855484,1721584247693,-4986.22555989,0.00015607,2]
[332855488,1721584247733,-1398.57585099,0.00015607,2]
[332855493,1721584247773,-2216.56958817,0.00015607,2]
[332855574,1721585232137,-457.64838399,9.899e-05,2]
[332855575,1721585232159,-154.79103211,9.999e-05,2]
[332855576,1721585232181,-341.48992898,9.999e-05,2]
[332855577,1721585232203,-375.39217735,9.999e-05,2]
[332855578,1721585232229,-560.07574026,9.999e-05,2]
[332855579,1721585232259,-188.02682589,9.999e-05,2]
[332855580,1721585232285,-300.0,0.00013807,2]
[332855581,1721585232307,-157.015228,0.00013808,2]
[332855582,1721585232329,-167.692844,0.00013808,2]
[332855583,1721585232351,-190.029016,0.00013808,2]
[332855584,1721585232377,-151.944206,0.00013808,2]
[332855585,1721585232401,-250.0,0.00014179,2]
[332855586,1721585232426,-250.0,0.00014218,2]
[332855587,1721585232450,-750.0,0.00014247,2]
[332855588,1721585232474,-250.0,0.00014257,2]
[332855589,1721585232512,-250.0,0.00014295,2]
[332855590,1721585232537,-250.0,0.00014334,2]
[332855591,1721585232563,-250.0,0.00014373,2]
[332855592,1721585232588,-250.0,0.00014412,2]
[332855593,1721585232611,-150.0,0.0001442,2]
[332855594,1721585232635,-898.023,0.0001442,2]
[332855595,1721585232659,-250.0,0.00014451,2]
[332855596,1721585232683,-250.0,0.0001449,2]
[332855597,1721585232705,-151.944206,0.00014498,2]
[332855598,1721585232740,-250.0,0.00014529,2]
[332855599,1721585232764,-250.0,0.00014568,2]
[332855600,1721585232788,-250.0,0.00014606,2]
[332855601,1721585232811,-250.0,0.00014645,2]
[332855602,1721585232835,-250.0,0.00014684,2]
[332855603,1721585232855,-154.69833824,0.0001469,2]
[332855604,1721585232877,-898.53879761,0.0001469,2]